Cogmind - Beta 14 @@@ ROGUE MODE // 2024.11.19 @ 20:09:27 Player: Shimmyarah Result: Destroyed by S-10 Pest with Light Assault Rifle Performance ------------- Evolutions (0) 0 Regions Visited (1) 200 Robots Destroyed (7) 35 Value Destroyed (102) 102 Prototype IDs (0) 0 Alien Tech Used (0) 0 Bonus (0) 0 TOTAL SCORE: 337 Bonus ------- None Cogmind --------- Core Integrity 0/250 Matter 300/300 Energy 100/100 System Corruption 0% Temperature Cool (0) Movement Core (100) Ox1 Location -10/Materials Parts ------- > --- POWER (1) -------- (None) > --- PROPULSION (2) --- (None) > --- UTILITY (2) ------ Small Storage Unit > --- WEAPON (2) ------- Light Assault Rifle > --- INVENTORY (8) ---- Ion Engine Light Treads Light Treads Aluminum Leg Aluminum Leg Seismic Detector EM Pulse Gun Mining Laser Peak State ------------ > --- POWER ------------ Ion Engine > --- PROPULSION ------- Aluminum Leg Aluminum Leg > --- UTILITY ---------- Small Storage Unit Improved Terrain Scanner > --- WEAPON ----------- Medium Laser Light Assault Rifle > --- INVENTORY -------- Ion Engine Light Treads Light Treads Wheel Compact Wheel Seismic Detector EM Pulse Gun Mining Laser [Rating: 9] Favorites ----------- Power Ion Engine Engine Ion Engine Propulsion Light Treads Treads Light Treads Leg Aluminum Leg Wheel Compact Wheel Utility Small Storage Unit Device Improved Terrain Scanner Storage Small Storage Unit Weapon Light Assault Rifle Energy Gun Medium Laser Ballistic Gun Light Assault Rifle Build | -11 -10 ------- Run | Yrd Mat Slots Evolved . | . . Power . | . . Propulsion . | . . Utility . | . . Weapon . | . . Parts Attached 6 | 4 2 Power . | . . Engine . | . . Core . | . . Reactor . | . . Propulsion 4 | 2 2 Treads 2 | 2 . Leg . | . . Wheel 2 | . 2 Hover . | . . Flight . | . . Utility 1 | 1 . Device 1 | 1 . Storage . | . . Processor . | . . Hackware . | . . Protection . | . . Artifact . | . . Weapon 1 | 1 . Energy Gun 1 | 1 . Energy Cannon . | . . Ballistic Gun . | . . Ballistic Cannon . | . . Launcher . | . . Special Weapon . | . . Impact Weapon . | . . Slashing Weapon . | . . Piercing Weapon . | . . Special Melee Weapon . | . . Unidentified Prototypes . | . . Parts Lost 5 | . 5 Power 1 | . 1 Propulsion 2 | . 2 Utility 1 | . 1 Weapon 1 | . 1 Highest Loss Streak 5 | . 5 To Critical Strikes . | . . Average Slot Usage (%) 97 | . 97 Engine 13 | . 13 Treads 23 | . 23 Wheel 4 | . 4 Device 13 | . 13 Storage 14 | . 14 Energy Gun 13 | . 13 Ballistic Gun 14 | . 14 Peak Build Rating 9 | 9 9 Average Rating 8 | 6 8 On Entrance 7 | 6 9 Naked Turns . | . . Heaviest Build 14 | 14 14 Greatest Support 40 | 40 40 Greatest Overweight (x) 1 | . 1 Average Overweight (x) . | . . Largest Inventory Capacity 8 | 8 8 Average Capacity 8 | 8 8 Most Carried 8 | 8 8 Average Carried 7 | 6 8 Final Capacity 8 | 8 8 Final Carried 8 | 8 8 Class Distribution -------------------- 100% | Mutant Dominant Class ---------------- Mutant | -10/Materials Resources | -11 -10 ----------- Run | Yrd Mat Matter Collected 266 | 231 35 Remotely . | . . Salvage Created 266 | 185 81 Parts 14 | 11 3 Haulers Intercepted . | . . Recyclers Shooed . | . . Parts Field Recycled . | . . Retrieved Matter . | . . Parts Self-Destructed . | . . Prevented . | . . Kills | -11 -10 ------- Run | Yrd Mat Combat Hostiles Destroyed 2 | . 2 Guns 2 | . 2 Classes Destroyed 3 | 2 1 Tunneler 4 | 4 . Recycler 1 | 1 . Grunt 2 | . 2 Best Kill Streak 2 | 2 1 Combat Bots Only 1 | . 1 Max Kills in Single Turn 1 | 1 1 Gunslinging . | . . Exploded . | . . Melee . | . . Uniques/NPCs Destroyed . | . . Combat | -11 -10 -------- Run | Yrd Mat Hostile Shots Fired 97 | . 97 Missed 26 | . 26 Damage Taken 685 | . 685 Core 250 | . 250 Absorbed by Shields . | . . Core Remaining (%) 100 | 100 . Volleys Fired 31 | 18 13 Largest 2 | 2 2 Hottest 70 | 70 70 Shots Fired 62 | 36 26 Gun 62 | 36 26 Cannon . | . . Launcher . | . . Special . | . . Kinetic 31 | 18 13 Thermal 31 | 18 13 Explosive . | . . Electromagnetic . | . . Robot Hit Streak 7 | 7 7 Robot Miss Streak 3 | 3 2 Penetration Max . | . . Secondary Targets . | . . Shots Hit Robots 33 | 20 13 Core Hits 12 | 8 4 Critical Kills . | . . Critical Parts Destroyed . | . . Critical Strikes . | . . Melee Attacks . | . . Impact . | . . Slashing . | . . Piercing . | . . Sneak Attacks . | . . Combat Hostiles . | . . Follow-up Attacks . | . . Damage Inflicted 350 | 207 143 Guns 350 | 207 143 Cannons . | . . Explosions . | . . Melee . | . . Ramming . | . . Kinetic 112 | 58 54 Thermal 238 | 149 89 Explosive . | . . Electromagnetic . | . . Impact . | . . Slashing . | . . Piercing . | . . Highest Corruption . | . . Average Corruption . | . . Corruption Purged . | . . Corruption Blocked . | . . Overload Shots . | . . Overflow Damage . | . . Projectiles . | . . Explosions . | . . Melee . | . . Knockbacks . | . . Impact . | . . Kinetic . | . . Secondary . | . . Self-Inflicted Damage . | . . Shots . | . . Rammed . | . . Targets Rammed . | . . Kicked . | . . Crushed . | . . Highest Temperature 180 | 180 176 Average Temperature 87 | 81 95 Received Heat Transfer 222 | . 222 Siege Activations . | . . Robots Corrupted . | . . Combat Hostiles . | . . Parts Fried . | . . Impact Corruptions . | . . Robots Melted . | . . Combat Hostiles . | . . Parts Melted 1 | 1 . Heat Transferred 703 | 444 259 Parts Sabotaged . | . . Parts Stolen . | . . Parts Stripped . | . . Power Chain Reactions . | . . Alert | -11 -10 ------- Run | Yrd Mat Peak Influence 66 | 25 66 Initial 16 | . 16 Average 19 | 15 20 Maximum Alert Level . | . . Low Security (%) 100 | 100 100 Level 1 . | . . Level 2 . | . . Level 3 . | . . Level 4 . | . . Level 5 . | . . High Security . | . . Max Security . | . . Squads Dispatched 2 | . 2 Investigation . | . . Extermination . | . . Reinforcement 2 | . 2 Assault . | . . Garrison . | . . Intercept . | . . Searches Triggered . | . . Construction Impeded . | . . Haulers Reinforced . | . . Active Scanning Responses . | . . Cargo Convoy Interrupts . | . . Stealth | -11 -10 --------- Run | Yrd Mat Distress Signals 1 | . 1 Communications Jammed . | . . Distress Signals . | . . Times Spotted 15 | . 15 Peak Tracking Total 10 | . 10 Tactical Retreats . | . . Traps | -11 -10 ------- Run | Yrd Mat Traps Triggered . | . . Indirectly . | . . Trap Hack Attempts . | . . Triggered . | . . Disarmed . | . . Reprogrammed . | . . Reused . | . . Traps Extracted . | . . Installed . | . . Triggered . | . . Machines | -11 -10 ---------- Run | Yrd Mat Machines Disabled . | . . Max in Single Turn . | . . Machines Repaired . | . . Machines Dismantled . | . . Machines Sabotaged . | . . Overloaded Fab Kills . | . . Hacking | -11 -10 --------- Run | Yrd Mat Machines Accessed 1 | . 1 Terminals 1 | . 1 Fabricators . | . . Repair Stations . | . . Recycling Units . | . . Scanalyzers . | . . Garrison Access . | . . Total Hacks 4 | . 4 Successful 2 | . 2 Failed 2 | . 2 Catastrophic . | . . Database Lockouts . | . . Manual 4 | . 4 Terminals 4 | . 4 Fabricators . | . . Repair Stations . | . . Recycling Units . | . . Scanalyzers . | . . Garrison Access . | . . Terminal Hacks . | . . Fabricator Hacks . | . . Repair Station Hacks . | . . Recycling Unit Hacks . | . . Scanalyzer . | . . Garrison Access Hacks . | . . Unauthorized Hacks 2 | . 2 Terminals 2 | . 2 Botnet 1 | . 1 Skim 1 | . 1 Fabricators . | . . Repair Stations . | . . Recycling Units . | . . Scanalyzers . | . . Garrison Access . | . . Data Cores Recovered . | . . Used . | . . Hacking Detections 1 | . 1 Full Trace Events . | . . Feedback Events . | . . Feedback Blocked . | . . Robot Schematics Acquired . | . . Robots Built . | . . Authchips . | . . Time . | . . Total Robot Build Rating . | . . Part Schematics Acquired . | . . Parts Built . | . . Authchips . | . . Time . | . . Total Part Build Rating . | . . Parts Repaired . | . . Time . | . . Parts Recycled . | . . Recycled Matter . | . . Retrieved Matter . | . . Retrieved Components . | . . Parts Scanalyzed . | . . Part Schematics Acquired . | . . Parts Damaged . | . . Bothacking | -11 -10 ------------ Run | Yrd Mat Used RIF Installer . | . . Robots Hacked . | . . Non-combat . | . . Combat . | . . Robot Hacks Applied . | . . Relay Couplers Released . | . . Fabnet Peak Effective % . | . . Robots Rewired . | . . Allies Hacked . | . . Hacks Repelled . | . . Allies | -11 -10 -------- Run | Yrd Mat Total Allies . | . . Largest Group . | . . Highest-Rated Group . | . . Highest-Rated Ally . | . . Total Orders . | . . Ally Attacks . | . . Total Damage . | . . Kills . | . . Allies Corrupted . | . . Allies Melted . | . . Intel | -11 -10 ------- Run | Yrd Mat Robot Analysis Total . | . . Derelict Logs Recovered . | . . Drone Launches . | . . Drone Recoveries . | . . Exploration | -11 -10 ------------- Run | Yrd Mat Turns Passed 641 | 129 512 Spaces Moved 361 | 29 332 Core 2 | . 2 Treads 251 | 11 240 Legs 18 | 18 . Wheels 90 | . 90 Hover . | . . Flight . | . . Fastest Speed 90 | 120 90 Average Speed 140 | 135 141 Slowest Speed 160 | 160 160 Overloaded Moves . | . . Propulsion Burnouts . | . . Robots Hopped . | . . Cave-ins Triggered . | . . Exploration Rate (%) 17 | 3 31 Regions Visited 1 Branch Regions . Pre-discovered Areas . | . . Known Exits Taken . | . . Unknown Exits Taken 1 | 1 . Scrap Searched . | . . Spaces Dug . | . . Terrain Destroyed . | . . Melee . | . . Projectile . | . . AOE . | . . Terrain Rammed . | . . Walls Destroyed . | . . Machines Disabled . | . . Actions | -11 -10 --------- Run | Yrd Mat Total 436 | 85 351 Wait 37 | 33 4 Move 360 | 28 332 Hop . | . . Pick Up 2 | 2 . Fast Attach 1 | 1 . Attach . | . . Detach . | . . Swap 5 | 3 2 Drop . | . . Fire 31 | 18 13 Melee . | . . Ram . | . . Kick . | . . Crush . | . . Escape Stasis . | . . Rewire . | . . Trap . | . . Miscellaneous . | . . Route ------- -11/Scrapyard -10/Materials (discovered 1 exit: [*Min]) History --------- Turn | Location | Event 20 | -11/Scrapyard | Discovered new exit (range 3) 130 | -11/Scrapyard | Entered Materials 130 | -10/Materials | Discovered new exit (range 15) 305 | -10/Materials | Build established: Mutant 622 | -10/Materials | Core integrity fell below 50% 635 | -10/Materials | Core integrity fell below 20% 642 | -10/Materials | Destroyed by S-10 Pest with Light Assault Rifle Last Messages --------------- 00471_ K-01 Serf collects debris. 00478_ K-01 Serf cleans the Matter Filter. 00485_ K-01 Serf collects debris. 00503_ K-01 Serf cleans the Matter Filter. 00523_ G-34 Mercenary destroyed. 00553_ Acquired 35 matter. 00583_ R-06 Scavenger collects Ion Engine. 00584_ O-16 Technician: "IFF HANDSHAKE FAILED. SECURING TERMINAL." 00587_ ALERT: Hostiles spotted, dispatching reinforcements to Terminal M002. 00602_ W-16 Scout sends out distress signal. 00604_ U-05 Engineer destroyed. 00605_ K-01 Serf collects debris. 00615_ Imp. Terrain Scanner destroyed. 00622_ Ion Engine destroyed. 00622_ G-34 Mercenary destroyed. 00626_ Wheel destroyed. 00628_ Med. Laser destroyed. 00640_ Com. Wheel destroyed. Map ----- +----------------------------------------------------+ | ????????????????? ???????????#???????? | | ???????????? ????????#??????#????????? | | ????????????????????????#?#??########?????? | | #??????????????????????? ? ?????# ?#??? | | #?????#############?????+??##???# """#???? | | #??#?##[ % # ???? ??????# """#???? | | #?????# """"""" #???????? ? ??# """#???? | | #????## """"""" #?????? ? ??? # #???? | | #?????# """"""" # ? ??????????# / """#???? | | #?????# """""""!#? ????? ?? ?# """##?## | | #?#???# """"""" #??????? ??? # """#???? | | ##????# *=#######???#?#?# #???? | | ###############+### ##########+######????# | | = ##???##? | | !% ##?""#?? | | = #?"Y"#?? | | ########## ########## ##+##" "##? | | #????????# #######?#####?# ## # | | #????????# #?# ### ## """?? | | #????????# ### "## # """""? | | #???? ???# #?# T## + """""? | | ?????????# ########### #?# "## # ! """""# | | ?????????# #?#???#???# ### ## # """?# | | ?????????# ##?#????### #?#! ## # ? | | ?????????# #??????#?## ### ## #########? | | ???? #???#??#?# @ ###+### #######??? | | #??????#?# #??#?# | | #????????# sss #?#??? | | ####/#########????????# #????? | | ?? ?? ????????????#??# ###+######+####??#?? | | ?"????????????????????####### # ??????# | | ???????????#??????#??#?#????# # !! #??#?? | | ????????????????#???????#???# # !! #????? | | ????????????#?????????????#?# # ##???? | | ???????????????????#?????#??# # #????? | | ?????????????????????#??????# # ##???? | | ?????????????????????????#??###############????? | | ????????????????????????????????#????????#?????# | | | | | | | | | | | | | | | | | | | | | | | | | +----------------------------------------------------+ Best States ------------- Heat Dissipation 25 Energy Generation 10 Energy Capacity 250 Matter Stores 298 Matter Capacity 300 Sight Range 16 Terrain Scan Range 16 Terrain Scan Density 10 Evasion (%) 54 Recoil Reduction 2 Item Schematics ----------------- None Robot Schematics ------------------ None Fabricated ------------ Nothing Alien Tech Used ----------------- None Achievements -------------- None Challenges ------------ None Game ------ Seed StealthActiveNanovents Manual? 0 Play Time 00:06:16 Cumulative 61.8 hours Start 2024.11.19 @ 20:05:46 End 2024.11.19 @ 20:09:27 Sessions 1 Manual Loads 0 Difficulty Rogue Special Mode None Game No. 106 Rogue 106 Adventurer 0 Explorer 0 Win Type - Total 0 Types 0/0/0/0/0/0/0/0/0 Lore% 44 Gallery% 37 Achievement% 28 Wizard Run 0 Options --------- Layout 1 ASCII 0 Keyboard 0 Movement Arrows Keybinds 0 Fullscreen 0 Font 20/SmallcapsGlow Map View 50x40 Zoom Use 0% Tactical HUD 1 Map Filters NONE Filters NONE Steam 1 RUN: cc4c7036-2fa5-4c08-a040-83e3e99e030a